bitfinex-derivatives/quotes_ETHF0:USTF0_20250327
["timestamp","ask_amount","ask_price","bid_price","bid_amount"]
[1743037547412,0.98812,2023.8,2023.7,42.21910613]
[1743037547809,0.98812,2023.8,2023.7,43.20727613]
[1743037549616,0.98812,2023.8,2023.7,42.21910613]
[1743037549819,0.98812,2023.8,2023.7,43.20727613]
[1743037550019,0.98812,2023.8,2023.7,42.21910613]
[1743037550512,0.98831,2023.4,2023.3,9.1958]
[1743037550917,0.98831,2023.4,2023.3,49.9958]
[1743037551723,0.98831,2023.4,2023.3,44.0078]
[1743037552023,0.98836,2023.3,2023.2,1.4311]
[1743037552321,1.70336,2023.3,2023.2,1.4311]
[1743037552514,1.70336,2023.3,2023.1,40.80740613]
[1743037552515,0.98841,2023.2,2023.1,40.80740613]
[1743037552719,5.83351,2023.2,2023.1,40.80740613]
[1743037552915,5.83351,2023.2,2023.1,0.00740613]
[1743037554922,0.715,2023.3,2023.1,0.99586613]
[1743037555116,1.70336,2023.3,2023.2,1.414]
[1743037555610,3.00156,2023.3,2023.2,1.414]
[1743037556220,2.28656,2023.3,2023.2,2.40241]
[1743037556519,2.28656,2023.3,2023.2,1.414]
[1743037561620,2.28656,2023.3,2023.2,2.40241]
[1743037561821,2.28656,2023.3,2023.2,1.414]
[1743037562119,2.28656,2023.3,2023.2,2.40241]
[1743037562518,4.43035,2023.4,2023.2,1.414]
[1743037562723,2.42385,2023.4,2023.3,2.40636]
[1743037563226,2.42385,2023.4,2023.3,5.61416]
[1743037564221,2.42385,2023.4,2023.3,4.6258]
[1743037564526,2.42385,2023.4,2023.3,5.61416]
[1743037567125,2.42385,2023.4,2023.3,4.6258]
[1743037567318,0.98841,2023.2,2023.1,0.00740613]
[1743037567828,0.98841,2023.2,2023.1,2.36676613]
[1743037569628,0.98839,2023.3,2023.2,0.98841]
[1743037569829,0.98839,2023.3,2023.2,3.03451]
[1743037571027,2.32575,2023.4,2023.3,0.98836]
[1743037571221,2.32575,2023.4,2023.3,2.35626]
[1743037574218,1.3374,2023.4,2023.3,5.56406]
[1743037574425,6.48741,2023.5,2023.4,0.98831]
[1743037574621,3.06341,2023.5,2023.4,2.35961]
[1743037574937,0.99547613,2024.0,2023.9,0.98807]
[1743037575635,0.99547613,2024.0,2023.9,2.28597]
[1743037576228,0.99547613,2024.0,2023.8,3.2078]
[1743037576427,4.7928,2023.9,2023.4,0.98827]
[1743037576631,0.98826,2023.5,2023.4,2.28617]
[1743037577336,2.36706,2023.5,2023.4,2.28617]
[1743037577538,2.36706,2023.5,2023.4,1.2979]
[1743037578032,2.36706,2023.5,2023.4,2.28621]
[1743037578530,0.98826,2023.5,2023.4,2.28621]
[1743037578736,1.3462,2023.8,2023.5,0.98826]
[1743037579037,1.3462,2023.8,2023.6,0.98817]
[1743037579038,5.7781,2023.7,2023.6,0.98817]
[1743037579237,5.7781,2023.7,2023.6,2.41577]
[1743037579724,0.9882,2023.7,2023.6,2.41577]
[1743037579922,3.71024,2023.8,2023.7,0.98817]
[1743037580132,2.0663,2023.8,2023.7,2.41577]
[1743037580330,4.40111,2023.9,2023.7,2.41577]
[1743037580331,4.40109,2023.9,2023.8,0.98812]
[1743037580530,4.40109,2023.9,2023.8,2.41572]
[1743037580741,0.98809,2023.9,2023.8,2.41572]
[1743037580929,2.36129,2023.9,2023.8,2.41572]
[1743037581234,1.3732,2023.9,2023.8,2.41572]
[1743037581439,2.36127,2023.9,2023.8,2.41572]
[1743037581939,1.3732,2023.9,2023.8,2.41572]
[1743037582239,2.36127,2023.9,2023.8,2.41572]
[1743037582637,1.3732,2023.9,2023.8,2.41572]
[1743037582952,1.3732,2023.9,2023.8,5.62352]
[1743037583540,2.36127,2023.9,2023.8,5.62352]
[1743037583756,1.3732,2023.9,2023.8,5.62352]
[1743037583952,2.36127,2023.9,2023.8,5.62352]
[1743037584350,1.3732,2023.9,2023.8,5.62352]
[1743037584648,1.64706613,2024.0,2023.9,0.98807]
[1743037584853,3.03236613,2024.0,2023.9,2.36007]
[1743037586453,0.99546613,2024.0,2023.9,2.36007]
[1743037586952,0.99546613,2024.0,2023.9,1.372]
[1743037587251,2.37496613,2024.0,2023.9,1.372]
[1743037587558,2.37496613,2024.0,2023.9,2.36007]
[1743037589043,1.38690613,2024.0,2023.9,2.36007]
[1743037589351,0.00740613,2024.0,2023.9,2.36007]
[1743037590554,0.99542613,2024.0,2023.9,2.36007]
[1743037590754,0.00740613,2024.0,2023.9,2.36007]
[1743037590954,0.99542613,2024.0,2023.9,2.36007]
[1743037592258,0.00740613,2024.0,2023.9,2.36007]
[1743037592757,1.41100613,2024.0,2023.9,2.36007]
[1743037592957,0.00740613,2024.0,2023.9,2.36007]
[1743037593156,0.99542613,2024.0,2023.9,2.36007]
[1743037594949,0.00740613,2024.0,2023.9,2.36007]
[1743037595555,0.00740613,2024.0,2023.9,43.16007]
[1743037595754,2.41294,2024.4,2024.3,0.98787]
[1743037596553,1.4251,2024.4,2024.3,0.98787]
[1743037596749,2.41292,2024.4,2024.3,0.98787]
[1743037597157,1.4251,2024.4,2024.3,2.39707]
[1743037597466,2.41292,2024.4,2024.3,2.39707]
[1743037599456,1.4251,2024.4,2024.3,2.39707]
[1743037599962,2.41292,2024.4,2024.3,2.39707]
[1743037600163,1.4251,2024.4,2024.3,2.39707]
[1743037600654,2.41292,2024.4,2024.3,2.39707]
[1743037602053,0.98792,2024.2,2024.1,3.21520613]
[1743037602256,0.98792,2024.2,2024.1,0.00740613]
[1743037602455,0.98792,2024.2,2024.1,0.99537613]
[1743037602956,2.29412,2024.2,2024.1,0.99537613]
[1743037603461,2.29412,2024.2,2024.1,2.34897613]
[1743037604861,0.98791,2024.3,2024.2,0.98787]
[1743037605062,0.98791,2024.3,2024.2,2.34147]
[1743037605762,2.34176,2024.4,2024.3,0.98787]
[1743037605957,2.32997,2024.5,2024.4,0.98782]
[1743037606156,2.34163,2024.6,2024.5,0.98777]
[1743037606363,2.34163,2024.6,2024.5,2.33377]
[1743037608163,2.34163,2024.6,2024.5,1.346]
[1743037608363,2.34163,2024.6,2024.5,2.33377]
[1743037609465,2.34163,2024.6,2024.5,1.346]
[1743037609661,0.98777,2024.5,2024.4,4.19562]
[1743037609860,2.41757,2024.5,2024.4,5.60862]
[1743037611466,2.41757,2024.5,2024.4,4.6208]
[1743037611765,0.98792,2024.3,2024.2,0.9879]
[1743037611955,0.98792,2024.3,2024.2,2.3258]
[1743037612160,2.33812,2024.3,2024.2,2.3258]
[1743037613269,2.99312,2024.3,2024.2,2.3258]
[1743037616569,2.99312,2024.3,2024.2,1.3379]
[1743037616769,2.99312,2024.3,2024.2,2.32582]
[1743037618274,2.99312,2024.3,2024.2,1.3379]
[1743037618969,0.98792,2024.2,2024.1,3.21520613]
[1743037619161,2.31522,2024.2,2024.1,0.00740613]
[1743037619364,0.98807,2023.9,2023.8,44.99589]
[1743037620167,3.03267,2023.9,2023.8,44.99589]
[1743037620472,3.03267,2023.9,2023.8,4.19589]
[1743037621274,3.03267,2023.9,2023.8,5.54839]
[1743037622376,3.03267,2023.9,2023.8,4.5603]
[1743037622572,3.03267,2023.9,2023.8,5.54842]
[1743037622977,0.00740613,2024.1,2023.8,8.0186]
[1743037623173,0.00740613,2024.1,2024.0,0.98802]
[1743037623377,0.99537613,2024.1,2024.0,1.66112]
[1743037623572,0.00740613,2024.1,2024.0,1.66112]
[1743037623781,0.00740613,2024.1,2024.0,42.46112]
[1743037625773,0.00740613,2024.1,2024.0,43.13266757]
[1743037625974,0.00740613,2024.1,2024.0,46.48966757]
[1743037626784,2.4051,2024.5,2024.4,0.98782]
[1743037627277,1.68053,2024.6,2024.5,0.98777]
[1743037627586,3.05583,2024.6,2024.5,0.98777]
[1743037628083,9.03282,2024.9,2024.4,1.4056]
[1743037628084,2.46862,2025.2,2025.0,0.98749]
[1743037628386,0.98755,2025.1,2025.0,0.98749]
[1743037629473,3.06737,2025.2,2025.1,0.98748]
[1743037631183,0.98748,2025.1,2025.0,2.377]
[1743037631382,2.38968,2025.1,2025.0,2.377]
[1743037632577,1.4022,2025.1,2025.0,2.377]
[1743037632884,0.6777,2025.2,2025.1,0.98748]
[1743037633083,0.6777,2025.2,2025.1,2.35448]
[1743037633285,2.98061,2025.3,2025.2,0.98743]
[1743037633480,2.98061,2025.3,2025.2,2.35443]
[1743037635386,0.6598,2025.4,2025.3,0.98738]
[1743037635576,0.6598,2025.4,2025.3,2.29018]
[1743037635784,3.16431343,2025.4,2025.3,1.17897865]
[1743037636286,2.17697343,2025.4,2025.3,0.62297387]
[1743037636689,3.51567343,2025.4,2025.3,0.62297387]
[1743037636988,3.20700639,2025.4,2025.3,0.62297387]
[1743037637189,4.19434639,2025.4,2025.3,0.62297387]
[1743037637391,3.20700639,2025.4,2025.3,0.62297387]
[1743037638390,2.54720639,2025.4,2025.3,0.62297387]
[1743037638588,3.53454639,2025.4,2025.3,0.62297387]
[1743037638787,2.54720639,2025.4,2025.3,0.62297387]
[1743037639494,2.54720639,2025.4,2025.3,2.03617387]
[1743037640290,1.20850639,2025.4,2025.3,2.03617387]
[1743037640681,0.22059939,2025.4,2025.3,2.03617387]
[1743037641490,0.22059939,2025.4,2025.1,3.2078]
[1743037641792,1.3226,2025.3,2025.2,0.98743]
[1743037641991,0.22059939,2025.4,2025.3,0.98738]
[1743037642189,1.3226,2025.5,2025.4,0.98734]
[1743037642495,1.3226,2025.5,2025.4,4.19514]
[1743037645495,1.6913,2025.7,2025.4,3.2078]
[1743037645699,1.6913,2025.7,2025.6,0.98724]
[1743037645992,1.69129,2025.7,2025.6,0.98724]
[1743037647192,1.29352889,2025.9,2025.7,2.46798]
[1743037647399,1.29352889,2025.9,2025.8,2.35264]
[1743037647598,1.3638,2026.1,2026.0,0.98704]
[1743037648391,2.35079,2026.1,2026.0,0.98704]
[1743037650500,0.98704,2026.0,2025.9,2.37695]
[1743037650698,1.3638,2026.1,2026.0,0.98704]
[1743037650699,2.35079,2026.1,2026.0,0.98704]
[1743037651001,2.35079,2026.1,2026.0,2.35814]
[1743037651002,1.3638,2026.1,2026.0,2.35814]
[1743037651196,2.35079,2026.1,2026.0,2.35814]
[1743037651405,3.0403296,2026.1,2026.0,0.98704]
[1743037651802,0.98709,2026.0,2025.9,0.98705]
[1743037651996,5.80765,2026.0,2025.7,5.988]
[1743037652201,5.80765,2026.0,2025.7,6.97519]
[1743037652202,0.98714,2025.8,2025.7,6.97519]
[1743037652401,0.98725,2025.7,2025.6,0.98721]
[1743037652601,2.10832232,2025.7,2025.6,0.98721]
[1743037652903,2.10826232,2025.7,2025.6,0.98721]
[1743037653106,1.12107232,2025.7,2025.6,0.98721]
[1743037653402,2.10826232,2025.7,2025.6,0.98721]
[1743037654404,2.10826232,2025.7,2025.5,1.3711]
[1743037654604,2.10826232,2025.7,2025.6,0.98721]
[1743037655909,1.12107232,2025.7,2025.6,0.98721]
[1743037656104,2.10826232,2025.7,2025.6,0.98721]
[1743037656310,1.77097232,2025.7,2025.6,0.98721]
[1743037656803,1.12107232,2025.7,2025.6,0.98721]
[1743037657605,1.12107232,2025.7,2025.6,2.31131]
[1743037658402,2.10829232,2025.7,2025.6,0.98724]
[1743037658602,1.81457232,2025.7,2025.6,0.98724]
[1743037659403,1.12107232,2025.7,2025.6,0.98724]
[1743037659605,1.12107232,2025.7,2025.6,2.34454]
[1743037659804,1.12107232,2025.7,2025.6,1.68654]
[1743037661712,1.12107232,2025.7,2025.6,0.98724]
[1743037662209,2.51107232,2025.7,2025.6,0.98724]
[1743037665715,3.49826232,2025.7,2025.6,0.98724]
[1743037666114,2.51107232,2025.7,2025.6,0.98724]
[1743037668111,3.49826232,2025.7,2025.6,0.98724]
[1743037668313,0.98728,2025.6,2025.5,0.98727]
[1743037668516,3.10658,2025.6,2025.5,41.78727]
[1743037668718,3.7961196,2025.6,2025.5,40.8]
[1743037668914,4.22765232,2025.6,2025.5,40.8]
[1743037669623,0.98729,2025.5,2025.4,4.19511]
[1743037669929,0.98734,2025.4,2025.3,6.97535]
[1743037670125,1.41887272,2025.4,2025.3,6.97535]
[1743037670314,2.75737272,2025.4,2025.3,6.97535]
[1743037670820,1.77003272,2025.4,2025.3,47.77535]
[1743037671217,0.43153272,2025.4,2025.3,47.77535]
[1743037671521,0.43153272,2025.4,2025.3,51.776198]
[1743037674622,0.43153272,2025.4,2025.3,47.77535]
[1743037674826,0.43153272,2025.4,2025.3,51.10035]
[1743037675727,1.77483272,2025.4,2025.3,51.10035]
[1743037678123,1.77483272,2025.4,2025.3,47.77535]
[1743037679228,0.43153272,2025.4,2025.3,47.77535]
[1743037679628,1.74443272,2025.4,2025.3,47.77535]
[1743037680220,1.3129,2025.4,2025.3,47.77535]
[1743037682431,1.3129,2025.4,2025.3,50.98315]
[1743037683128,2.30024,2025.4,2025.3,40.8]
[1743037683329,2.30024,2025.4,2025.0,5.988]
[1743037683330,0.98748,2025.1,2025.0,5.988]
[1743037683534,0.02382404,2026.2,2025.7,0.98719]
[1743037683831,0.02382404,2026.2,2026.1,0.98699]
[1743037685225,0.02382404,2026.2,2026.1,2.35819]
[1743037686026,1.38292404,2026.2,2026.1,2.35819]
[1743037687238,1.38292404,2026.2,2026.0,10.18281]
[1743037687538,0.98699,2026.1,2026.0,5.988]
[1743037687940,2.33469,2026.1,2026.0,5.988]
[1743037690041,2.33469,2026.1,2025.9,0.99449613]
[1743037690042,0.98704,2026.0,2025.9,0.99449613]
[1743037690235,2.7155,2026.0,2025.9,0.99449613]
[1743037690634,2.0353,2026.0,2025.9,0.99449613]
[1743037691341,3.02234,2026.0,2025.9,2.29319613]
[1743037692040,2.0353,2026.0,2025.9,2.29319613]
[1743037692248,1.3184,2026.0,2025.9,2.29319613]
[1743037692742,2.30544,2026.0,2025.9,2.29319613]
[1743037692943,2.30544,2026.0,2025.9,1.30610613]
[1743037693143,2.30544,2026.0,2025.9,0.99449613]
[1743037693352,2.30544,2026.0,2025.9,0.00740613]
[1743037693535,2.30544,2026.0,2025.9,0.99449613]
[1743037693838,2.30544,2026.0,2025.9,0.00740613]
[1743037694740,2.30544,2026.0,2025.9,0.99449613]
[1743037694947,2.30544,2026.0,2025.9,5.59299613]
[1743037695653,1.3184,2026.0,2025.9,5.59299613]
[1743037695841,2.30544,2026.0,2025.9,5.59299613]
[1743037696038,1.3184,2026.0,2025.9,5.59299613]
[1743037696746,2.30544,2026.0,2025.9,5.59299613]
[1743037697442,1.3184,2026.0,2025.9,5.59299613]
[1743037698847,2.30544,2026.0,2025.9,5.59299613]
[1743037699147,1.3184,2026.0,2025.9,5.59299613]
[1743037699954,2.30544,2026.0,2025.9,5.59299613]
[1743037700149,1.3184,2026.0,2025.9,5.59299613]
[1743037702948,2.30544,2026.0,2025.9,5.59299613]
[1743037703348,1.3184,2026.0,2025.9,5.59299613]
[1743037703853,2.30544,2026.0,2025.9,5.59299613]
[1743037704253,1.3184,2026.0,2025.9,5.59299613]
[1743037704653,2.30544,2026.0,2025.9,5.59299613]
[1743037706352,2.30544,2026.0,2025.9,3.21520613]
[1743037706556,2.30544,2026.0,2025.9,0.00740613]
[1743037707154,2.30544,2026.0,2025.9,1.44140613]
[1743037707659,2.30544,2026.0,2025.9,0.00740613]
[1743037713359,3.40523583,2026.0,2025.9,0.00740613]
[1743037714755,2.30544,2026.0,2025.9,0.00740613]
[1743037717352,3.40557963,2026.0,2025.9,0.00740613]
[1743037717856,2.30544,2026.0,2025.9,0.00740613]
[1743037719059,2.30544,2026.0,2025.9,1.36850613]
[1743037721057,2.30544,2026.0,2025.9,0.00740613]
[1743037721561,1.3184,2026.0,2025.9,4.20229613]
[1743037721867,1.3184,2026.0,2025.9,6.09799613]
[1743037723660,0.98701,2026.1,2026.0,0.98704]
[1743037723861,0.98701,2026.1,2026.0,2.34624]
[1743037724056,0.98701,2026.1,2026.0,3.01374]
[1743037725366,2.39871,2026.1,2026.0,1.3592]
[1743037727166,0.98704,2026.0,2025.9,0.50740613]
[1743037727466,2.36924,2026.0,2025.9,1.83590613]
[1743037728471,2.36924,2026.0,2025.9,2.82299613]
[1743037729370,2.36924,2026.0,2025.9,1.83590613]
[1743037730475,2.36924,2026.0,2025.9,0.50740613]
[1743037730768,2.36924,2026.0,2025.9,1.49449613]
[1743037730970,2.36924,2026.0,2025.9,0.50740613]
[1743037731370,2.36924,2026.0,2025.9,1.83560613]
[1743037735173,2.36924,2026.0,2025.9,0.50740613]
[1743037735767,5.57704,2026.0,2025.9,0.50740613]
[1743037736277,6.67694461,2026.0,2025.9,0.50740613]
[1743037740377,3.46914461,2026.0,2025.9,0.50740613]
[1743037740771,3.46914461,2026.0,2025.9,2.53560613]
[1743037740975,2.36924,2026.0,2025.9,2.53560613]
[1743037741374,2.36924,2026.0,2025.9,1.86490613]
[1743037741578,5.57704,2026.0,2025.9,0.50740613]
[1743037746377,8.89404,2026.0,2025.9,0.50740613]
[1743037746581,9.99394461,2026.0,2025.9,0.50740613]
[1743037746883,9.99394461,2026.0,2025.9,1.82180613]
[1743037751292,6.67694461,2026.0,2025.9,1.82180613]
[1743037752488,5.68990461,2026.0,2025.9,3.49989613]
[1743037752694,4.59,2026.0,2025.9,3.49989613]
[1743037753689,5.57704,2026.0,2025.9,3.49989613]
[1743037758100,2.36924,2026.0,2025.9,3.49989613]
[1743037759597,2.36924,2026.0,2025.9,2.51280613]
[1743037759900,2.36924,2026.0,2025.9,0.50740613]
[1743037760398,5.57704,2026.0,2025.9,0.50740613]
[1743037760601,6.67685727,2026.0,2025.9,0.50740613]
[1743037763097,0.98719,2025.7,2025.6,5.988]
[1743037763297,0.98734,2025.4,2025.3,1.4056]
[1743037763497,4.19514,2025.4,2025.3,1.4056]
[1743037763807,0.9876,2024.9,2024.7,0.98765]
[1743037764009,0.9876,2024.9,2024.8,2.39323]
[1743037764302,0.9876,2024.9,2024.8,42.2056]
[1743037764704,0.9876,2024.9,2024.8,2.39323]
[1743037765002,0.00740613,2025.0,2024.8,1.4056]
[1743037765202,0.99496613,2025.0,2024.8,0.9876]
[1743037765403,0.99496613,2025.0,2024.9,0.6827]
[1743037766508,0.98758,2024.9,2024.8,0.9876]
[1743037767999,0.98758,2024.9,2024.7,41.4535]
[1743037768000,0.98758,2024.9,2024.7,42.44114]
[1743037769308,0.98763,2024.8,2024.7,42.44114]
[1743037769900,0.98763,2024.8,2024.7,42.44118]
[1743037770107,0.98763,2024.8,2024.7,41.4535]
[1743037770503,0.98763,2024.8,2024.7,42.44118]
[1743037771913,0.98762,2024.9,2024.7,42.44118]
[1743037772111,0.98763,2024.8,2024.7,42.44118]
[1743037773609,0.98762,2024.9,2024.7,42.44118]
[1743037774711,0.98763,2024.8,2024.7,42.44118]
[1743037778515,0.98763,2024.8,2024.7,0.6535]
[1743037778719,0.98768,2024.7,2024.6,3.21520613]
[1743037778917,1.66488,2024.7,2024.6,3.21520613]
[1743037780320,1.66488,2024.7,2024.6,4.20293613]
[1743037781215,3.09678,2024.7,2024.6,4.60050613]
[1743037782320,3.09678,2024.7,2024.6,5.58823613]
[1743037783020,1.4319,2024.7,2024.6,5.58823613]
[1743037783322,2.41958,2024.7,2024.6,5.58823613]
[1743037784019,1.4319,2024.7,2024.6,5.58823613]
[1743037784223,1.67711,2024.9,2024.6,4.60050613]
[1743037784423,2.98521,2024.9,2024.8,0.98763]
[1743037784814,2.98521,2024.9,2024.8,1.3985]
[1743037785322,2.98521,2024.9,2024.8,2.38613]
[1743037785617,2.98521,2024.9,2024.8,1.3985]
[1743037786023,2.98521,2024.9,2024.8,2.38613]
[1743037787012,2.98521,2024.9,2024.8,1.3985]
[1743037788516,0.98768,2024.7,2024.6,4.20290613]
[1743037789016,0.98768,2024.7,2024.6,3.21520613]
[1743037789325,0.98768,2024.7,2024.6,0.00740613]
[1743037790118,0.98768,2024.7,2024.6,1.42880613]
[1743037790824,0.98768,2024.7,2024.6,2.41653613]
[1743037791419,1.372,2024.8,2024.7,0.98768]
[1743037791719,2.38549,2024.9,2024.8,0.98763]
[1743037792324,2.38549,2024.9,2024.8,2.40933]
[1743037792717,2.38549,2024.9,2024.8,1.4217]
[1743037793229,0.98763,2024.8,2024.7,41.78768]
[1743037793526,3.07453,2024.8,2024.7,41.78768]
[1743037794025,3.07453,2024.8,2024.7,0.98768]
[1743037794617,3.07453,2024.8,2024.7,43.19188]
[1743037795225,3.07453,2024.8,2024.7,2.39188]
[1743037795829,3.07453,2024.8,2024.7,43.19188]
[1743037797031,3.07453,2024.8,2024.7,1.4042]
[1743037797527,3.07453,2024.8,2024.6,45.00290613]
[1743037797528,0.98768,2024.7,2024.6,45.00290613]
[1743037797831,3.09018,2024.7,2024.6,5.54580613]
[1743037798031,3.09018,2024.7,2024.6,4.55810613]
[1743037798231,3.09018,2024.7,2024.6,5.54583613]
[1743037799524,3.09018,2024.7,2024.6,4.55810613]
[1743037800629,3.09018,2024.7,2024.6,1.35030613]
[1743037801131,3.09018,2024.7,2024.6,0.00740613]
[1743037801535,3.09018,2024.7,2024.6,1.33230613]
[1743037803331,3.09018,2024.7,2024.6,0.00740613]
[1743037803924,3.09018,2024.7,2024.6,1.31650613]
[1743037804330,3.09018,2024.7,2024.6,0.00740613]
[1743037805326,4.19120249,2024.7,2024.6,0.00740613]
[1743037805833,4.19120249,2024.7,2024.3,1.3091]
[1743037805834,0.98786,2024.4,2024.2,40.8]
[1743037806137,0.98786,2024.4,2024.3,2.40557]
[1743037806324,0.98786,2024.4,2024.3,1.4177]
[1743037806526,1.4039,2024.4,2024.3,2.40557]
[1743037806728,2.39172,2024.4,2024.3,1.4177]
[1743037806927,2.39172,2024.4,2024.3,2.40557]
[1743037807123,2.39172,2024.4,2024.3,1.4177]
[1743037807325,0.98787,2024.3,2024.2,40.8]
[1743037807523,3.10147,2024.3,2024.2,40.8]
[1743037808936,3.81877,2024.3,2024.2,40.8]
[1743037809832,1.4039,2024.3,2024.2,0.98792]
[1743037810039,1.3573,2024.5,2024.4,0.98782]
[1743037810232,1.427,2024.6,2024.5,0.98777]
[1743037810430,1.427,2024.6,2024.5,2.32917]
[1743037810638,1.427,2024.6,2024.5,3.04587]
[1743037810934,1.6981,2024.7,2024.6,0.98773]
[1743037811138,3.1251,2024.7,2024.6,1.3414]
[1743037811533,0.98777,2024.5,2024.4,41.5167]
[1743037811735,0.98777,2024.5,2024.4,41.78782]
[1743037812733,0.98777,2024.5,2024.4,41.7878]
[1743037813039,2.28217,2024.5,2024.4,43.1116]
[1743037814641,2.28217,2024.5,2024.4,42.1238]
[1743037814939,2.28217,2024.5,2024.4,43.11162]
[1743037815442,0.98782,2024.4,2024.3,3.2078]
[1743037815633,0.98792,2024.2,2024.1,0.00740613]
[1743037815836,7.45572,2024.2,2024.1,0.00740613]
[1743037816039,7.45572,2024.2,2023.6,45.3853]
[1743037816040,0.98817,2023.7,2023.6,3.2078]
[1743037816337,0.98831,2023.4,2023.3,0.6723]
[1743037816640,0.98831,2023.4,2023.3,42.1785]
[1743037816846,0.98831,2023.4,2023.3,40.8]
[1743037817144,4.26531,2023.4,2023.3,40.8]
[1743037817334,3.277,2023.4,2023.1,0.00740613]
[1743037817536,0.98841,2023.2,2023.1,0.00740613]
[1743037817940,4.84841,2023.2,2023.1,0.00740613]
[1743037818247,0.98851,2023.0,2022.9,11.50404725]
[1743037818439,4.26951,2023.0,2022.9,11.50404725]
[1743037818637,6.76951,2023.0,2022.9,9.34714725]
[1743037818837,6.76951,2023.0,2022.7,15.33872967]
[1743037818838,0.9886,2022.8,2022.7,15.21574936]
[1743037819137,0.9888,2022.4,2022.3,1.4323]
[1743037819442,0.9889,2022.2,2022.1,3.21520613]
[1743037820644,0.9889,2022.2,2021.6,52.26821687]
[1743037820645,0.98914,2021.7,2021.6,52.26821687]
[1743037820842,4.28914,2021.7,2021.6,52.26821687]
[1743037821540,3.2078,2022.3,2021.6,11.46821687]
[1743037821738,3.31,2022.3,2021.8,3.2078]
[1743037822044,3.31,2022.3,2022.1,0.98895]
[1743037822045,4.29888,2022.3,2022.1,0.98895]
[1743037822241,4.29889,2022.3,2022.0,0.98896]
[1743037822435,4.29889,2022.3,2022.1,2.35424]
[1743037822635,4.29889,2022.3,2022.2,1.3653]
[1743037823546,4.29889,2022.3,2022.2,2.3542]
[1743037823547,3.31,2022.3,2022.2,2.3542]
[1743037823845,3.314,2022.5,2022.4,0.9888]
[1743037824043,4.20392613,2022.6,2022.5,0.98875]
[1743037824338,0.00740613,2022.6,2022.5,0.98875]
[1743037824944,0.00740613,2022.6,2022.5,4.19655]
[1743037828748,4.19632,2023.0,2022.5,5.67965]
[1743037829053,4.19633,2023.0,2022.8,0.98857]
[1743037829250,4.19633,2023.0,2022.9,1.3974]
[1743037844856,0.9886,2022.8,2022.7,0.00740613]
[1743037845045,4.2776,2022.8,2022.7,0.00740613]
[1743037845962,2.47192,2022.5,2021.9,3.2078]
[1743037846156,0.989,2022.0,2021.9,3.2078]
[1743037847658,0.98904,2021.9,2021.8,42.44899]
[1743037847860,0.98904,2021.9,2021.8,41.4599]
[1743037848050,0.98903,2022.0,2021.8,43.75849]
[1743037848248,0.98903,2022.0,2021.9,1.3095]
[1743037850657,3.21520613,2022.2,2021.9,1.3095]
[1743037850857,2.47165,2022.7,2021.9,6.98989]
[1743037850858,4.19659,2022.5,2021.9,6.98989]
[1743037851160,2.08791153,2022.6,2022.5,0.98875]
[1743037851462,0.98874,2022.6,2022.5,0.98875]
[1743037851660,0.98874,2022.6,2022.5,1.3912]
[1743037851859,0.98853,2023.0,2022.8,0.98858]
[1743037852159,0.98855,2023.0,2022.8,0.98856]
[1743037852365,0.98855,2023.0,2022.8,41.78856]
[1743037852660,0.98856,2022.9,2022.8,0.98856]
[1743037853052,0.98856,2023.0,2022.8,0.98856]
[1743037853258,0.98854,2023.0,2022.8,0.98856]
[1743037853458,0.98854,2023.0,2022.8,0.98857]
[1743037853771,0.98856,2022.9,2022.8,0.98857]
[1743037853958,0.98854,2023.0,2022.8,0.98857]
[1743037854155,0.98854,2023.0,2022.9,1.3901]
[1743037854464,0.98854,2023.0,2022.9,2.37866]
[1743037855062,0.98854,2023.0,2022.9,1.3901]
[1743037855262,0.98851,2023.0,2022.9,1.3901]
[1743037855763,0.00740613,2023.1,2022.9,2.37866]
[1743037855954,0.98851,2023.0,2022.9,2.37866]
[1743037856160,0.99589613,2023.1,2022.9,2.37866]
[1743037856564,0.98851,2023.0,2022.9,2.37866]
[1743037856965,0.99589613,2023.1,2022.9,2.37866]
[1743037857368,0.99589613,2023.1,2023.0,1.4088]
[1743037857572,0.99589613,2023.1,2023.0,2.7756]
[1743037858068,2.35139613,2023.1,2023.0,2.7756]
[1743037859862,0.99589613,2023.1,2023.0,2.7756]
[1743037860970,2.36019613,2023.1,2023.0,2.7756]
[1743037861668,0.99589613,2023.1,2023.0,2.7756]
[1743037863057,0.99589613,2023.1,2023.0,3.76411]
[1743037863258,0.00740613,2023.1,2023.0,6.97191]
[1743037863865,54.4261,2023.5,2023.3,0.98836]
[1743037863866,0.98834,2023.4,2023.3,0.98836]
[1743037864066,0.98834,2023.4,2023.2,0.98839]
[1743037864263,0.98834,2023.4,2023.3,1.3498]
[1743037864865,0.9883,2023.5,2023.3,5.54596]
[1743037865068,0.9883,2023.5,2023.3,5.54593]
[1743037865367,0.00740613,2023.6,2023.5,0.98826]
[1743037865570,0.00740613,2023.6,2023.5,1.64266]
[1743037865769,0.98812,2023.8,2023.6,0.98821]
[1743037866068,0.98812,2023.8,2023.7,1.3498]
[1743037867360,3.2078,2023.9,2023.8,0.98812]
[1743037867561,0.98807,2023.9,2023.8,0.98812]
[1743037867966,0.98807,2023.9,2023.7,2.33793]
[1743037868565,4.29442613,2024.0,2023.8,0.98807]
[1743037868869,0.00740613,2024.0,2023.9,5.50907]
[1743037869670,0.00740613,2024.0,2023.9,4.521]
[1743037869972,0.99542613,2024.0,2023.9,1.3132]
[1743037870171,0.00740613,2024.0,2023.9,1.3132]
[1743037870377,0.99542613,2024.0,2023.9,1.3132]
[1743037870871,0.00740613,2024.0,2023.9,2.30127]
[1743037871269,3.294,2024.4,2023.9,1.3132]
[1743037871472,3.294,2024.4,2024.1,3.2078]
[1743037871473,0.98793,2024.2,2024.1,3.2078]
[1743037871668,0.98793,2024.2,2024.1,4.5538]